[Event "Gibraltar Junior Intl U16 2019"]
[Site "Caleta"]
[Date "2019.08.18"]
[Round "5.2"]
[White "Perez Beltran, Salvador"]
[Black "Revaliente Montoya, Ciro"]
[Result "1/2-1/2"]
[ECO "B51"]
[WhiteElo "2103"]
[BlackElo "2006"]
[Annotator "NA"]
[PlyCount "57"]
[EventDate "2019.08.16"]
[EventType "swiss"]
[EventCountry "GGB"]
[SourceTitle "playchess.com"]
[Source "ChessBase"]
[SourceQuality "1"]
[TimeControl "6600+10"]

1. e4 {[%emt 0:00:00]} c5 {[%emt 0:00:00]} 2. Nf3 {[%emt 0:00:00]} d6 {[%emt 0:00:00]} 3. Bb5+ {[%emt 0:00:02]} Nd7 {[%emt 0:00:02]} 4. O-O {[%emt 0:00:07]} Ngf6 {[%emt 0:00:26]} 5. Re1 {[%emt 0:00:28]} g6 {[%emt 0:00:48]} 6. c3 {[%emt 0:01:23]} Bg7 {[%emt 0:01:25]} 7. d4 {[%emt 0:00:53]} O-O {[%emt 0:00:10]} 8. h3 {[%emt 0:15:46]} a6 {[%emt 0:03:28]} 9. Bf1 {[%emt 0:04:14]} Ne8 {[%emt 0:04:21]} 10. a4 {[%emt 0:04:34]} b6 {[%emt 0:01:30]} 11. d5 {[%emt 0:09:14]} Bb7 {[%emt 0:02:48]} 12. Na3 {[%emt 0:03:15]} Nc7 {[%emt 0:04:56]} 13. Be3 {[%emt 0:10:17]} f5 {[%emt 0:06:42]} 14. exf5 {[%emt 0:05:10]} Rxf5 {[%emt 0:00:07]} 15. Bd3 {[%emt 0:00:52]} Rf7 {[%emt 0:02:37]} 16. Ng5 {[%emt 0:16:40]} Rf8 {[%emt 0:01:09]} 17. f4 {[%emt 0:11:21]} Bxd5 {[%emt 0:04:09]} 18. c4 {[%emt 0:02:31]} Bb7 {[%emt 0:00:37]} 19. Qc2 {[%emt 0:01:09]} e5 {[%emt 0:03:45]} 20. f5 {[%emt 0:01:10]} h6 {[%emt 0:06:15]} 21. Ne6 {[%emt 0:00:47]} Nxe6 {[%emt 0:00:06]} 22. fxe6 {[%emt 0:00:04]} Nf6 {[%emt 0:01:50]} 23. Bxg6 {[%emt 0:00:24]} Qe7 {[%emt 0:00:01]} 24. Bf7+ {[%emt 0:01:13]} Kh8 {[%emt 0:00:01]} 25. Bd2 {[%emt 0:08:25]} Bc8 {[%emt 0:10:42]} 26. Qg6 {[%emt 0:00:02]} Bxe6 27. Bxe6 {[%emt 0:00:01]} Qxe6 28. Bxh6 Rg8 {[%emt 0:00:11]} 29. Rf1 {[%emt 0:00:04]} 1/2-1/2

[Event "Gibraltar Junior Intl U16 2019"]
[Site "Caleta"]
[Date "2019.08.18"]
[Round "5.3"]
[White "Gutierrez Lupion, Daniel"]
[Black "Cuellar Montes, Alejandro"]
[Result "1/2-1/2"]
[ECO "B07"]
[WhiteElo "1811"]
[BlackElo "2143"]
[Annotator "NA"]
[PlyCount "76"]
[EventDate "2019.08.16"]
[EventType "swiss"]
[EventCountry "GGB"]
[SourceTitle "playchess.com"]
[Source "ChessBase"]
[SourceQuality "1"]
[TimeControl "6600+10"]

1. e4 {[%emt 0:00:00]} d6 {[%emt 0:00:00]} 2. d4 {[%emt 0:00:04]} Nf6 {[%emt 0:00:04]} 3. Nc3 {[%emt 0:00:09]} Nbd7 {[%emt 0:00:03]} 4. f4 {[%emt 0:00:32]} e5 {[%emt 0:00:05]} 5. Nf3 {[%emt 0:01:56]} exd4 {[%emt 0:00:14]} 6. Nxd4 {[%emt 0:00:17]} g6 {[%emt 0:00:04]} 7. Bc4 {[%emt 0:00:56]} Bg7 {[%emt 0:00:51]} 8. O-O {[%emt 0:00:39]} O-O {[%emt 0:00:15]} 9. Nf3 {[%emt 0:01:46]} Nc5 {[%emt 0:01:01]} 10. e5 {[%emt 0:04:25]} dxe5 {[%emt 0:02:06]} 11. Qxd8 {[%emt 0:01:18]} Rxd8 {[%emt 0:00:02]} 12. fxe5 {[%emt 0:01:28]} Ng4 {[%emt 0:06:50]} 13. Ng5 {[%emt 0:03:47]} Be6 {[%emt 0:04:02]} 14. Bxe6 {[%emt 0:08:19]} fxe6 {[%emt 0:02:05]} 15. Bf4 {[%emt 0:01:25]} Nxe5 {[%emt 0:08:58]} 16. Rae1 {[%emt 0:01:12]} Ng4 {[%emt 0:01:24]} 17. h3 {[%emt 0:07:54]} Bd4+ {[%emt 0:07:03]} 18. Kh1 {[%emt 0:02:46]} e5 {[%emt 0:02:02]} 19. Bg3 {[%emt 0:04:59]} Ne3 {[%emt 0:00:54]} 20. Rf3 {[%emt 0:01:41]} Nxc2 {[%emt 0:04:18]} 21. Re2 {[%emt 0:00:26]} Nb4 {[%emt 0:06:40]} 22. Bxe5 {[%emt 0:01:01]} Nc6 {[%emt 0:22:26]} 23. Bxc7 {[%emt 0:19:51]} Rd7 {[%emt 0:00:38]} 24. Bg3 {[%emt 0:00:26]} Bg7 {[%emt 0:12:40]} 25. Rfe3 {[%emt 0:11:17]} Rf8 {[%emt 0:02:25]} 26. Re8 {[%emt 0:01:23]} Nd4 {[%emt 0:01:19]} 27. Rxf8+ {[%emt 0:02:17]} Bxf8 {[%emt 0:00:05]} 28. Rd2 {[%emt 0:07:34]} Nf5 {[%emt 0:07:08]} 29. Bf4 {[%emt 0:02:02]} Rxd2 {[%emt 0:00:16]} 30. Bxd2 {[%emt 0:00:05]} Nd3 {[%emt 0:00:24]} 31. g4 {[%emt 0:02:30]} Nh4 {[%emt 0:03:17]} 32. Nce4 {[%emt 0:01:54]} Bg7 {[%emt 0:04:29]} 33. b3 {[%emt 0:01:20]} Be5 {[%emt 0:02:08]} 34. Bc3 {[%emt 0:00:58]} Bxc3 {[%emt 0:01:32]} 35. Nxc3 {[%emt 0:00:39]} Nc5 {[%emt 0:02:43]} 36. Kh2 {[%emt 0:00:49]} h6 {[%emt 0:00:28]} 37. Nge4 {[%emt 0:00:27]} Nxe4 {[%emt 0:00:05]} 38. Nxe4 {[%emt 0:00:02]} Nf3+ {[%emt 0:00:53]} 1/2-1/2

[Event "Gibraltar Junior Intl U16 2019"]
[Site "Caleta"]
[Date "2019.08.18"]
[Round "5.4"]
[White "Kracht, Raphael"]
[Black "Lorente Serrano, Rosa Adela"]
[Result "1-0"]
[ECO "B22"]
[WhiteElo "2072"]
[BlackElo "1810"]
[Annotator "NA"]
[PlyCount "71"]
[EventDate "2019.08.16"]
[EventType "swiss"]
[EventCountry "GGB"]
[SourceTitle "playchess.com"]
[Source "ChessBase"]
[SourceQuality "1"]
[TimeControl "6600+10"]

1. e4 {[%emt 0:00:00]} c5 {[%emt 0:00:00]} 2. d4 {[%emt 0:00:36]} cxd4 {[%emt 0:00:53]} 3. c3 {[%emt 0:00:07]} Nf6 {[%emt 0:01:13]} 4. e5 {[%emt 0:00:12]} Nd5 {[%emt 0:00:46]} 5. Nf3 {[%emt 0:00:07]} d6 {[%emt 0:02:15]} 6. cxd4 {[%emt 0:01:24]} Nc6 {[%emt 0:02:00]} 7. Bc4 {[%emt 0:03:48]} dxe5 {[%emt 0:08:48]} 8. Bxd5 {[%emt 0:03:00]} Qxd5 {[%emt 0:00:44]} 9. Nc3 {[%emt 0:00:09]} Qd6 {[%emt 0:16:27]} 10. d5 {[%emt 0:00:14]} e4 {[%emt 0:04:50]} 11. Nxe4 {[%emt 0:02:31]} Qb4+ {[%emt 0:00:29]} 12. Nc3 {[%emt 0:01:03]} Nb8 {[%emt 0:06:19]} 13. O-O {[%emt 0:04:26]} g6 {[%emt 0:02:07]} 14. a3 {[%emt 0:02:43]} Qb6 {[%emt 0:03:04]} 15. Be3 {[%emt 0:01:18]} Qd8 {[%emt 0:01:32]} 16. Bd4 {[%emt 0:02:08]} f6 {[%emt 0:00:14]} 17. Rc1 {[%emt 0:18:09]} a6 {[%emt 0:09:42]} 18. Re1 {[%emt 0:05:41]} Nd7 {[%emt 0:02:27]} 19. Ng5 {[%emt 0:06:22]} Ne5 {[%emt 0:01:43]} 20. f4 {[%emt 0:30:01]} Bg4 {[%emt 0:03:05]} 21. Qd2 {[%emt 0:03:14]} Nc4 {[%emt 0:01:04]} 22. Qd3 {[%emt 0:02:54]} Nxb2 {[%emt 0:00:34]} 23. Qb1 {[%emt 0:00:38]} fxg5 {[%emt 0:00:38]} 24. Qxb2 {[%emt 0:01:00]} Rg8 {[%emt 0:00:41]} 25. Ne4 {[%emt 0:00:49]} gxf4 {[%emt 0:04:14]} 26. Qxb7 {[%emt 0:06:32]} Bg7 {[%emt 0:07:14]} 27. Bxg7 {[%emt 0:01:12]} Rxg7 {[%emt 0:00:06]} 28. Nf6+ {[%emt 0:00:21]} Kf8 {[%emt 0:00:04]} 29. Nxg4 {[%emt 0:00:19]} a5 {[%emt 0:02:04]} 30. Qc6 {[%emt 0:03:01]} Kg8 {[%emt 0:01:56]} 31. Qe6+ {[%emt 0:00:31]} Kh8 {[%emt 0:00:08]} 32. Ne5 {[%emt 0:01:10]} Qf8 {[%emt 0:00:31]} 33. Rc3 {[%emt 0:01:12]} Rd8 {[%emt 0:01:02]} 34. Rec1 {[%emt 0:00:37]} Qf6 {[%emt 0:02:12]} 35. Rc8 {[%emt 0:01:29]} Qxe6 {[%emt 0:00:10]} 36. dxe6 {[%emt 0:00:35]} 1-0

[Event "Gibraltar Junior Intl U16 2019"]
[Site "Caleta"]
[Date "2019.08.18"]
[Round "5.6"]
[White "Maldonado Mena, German"]
[Black "Volovich, Julia"]
[Result "1-0"]
[ECO "A87"]
[WhiteElo "1850"]
[BlackElo "1726"]
[Annotator "NA"]
[PlyCount "65"]
[EventDate "2019.08.16"]
[EventType "swiss"]
[EventCountry "GGB"]
[SourceTitle "playchess.com"]
[Source "ChessBase"]
[SourceQuality "1"]
[TimeControl "6600+10"]

1. d4 {[%emt 0:00:00]} f5 {[%emt 0:00:00]} 2. g3 {[%emt 0:00:20]} Nf6 {[%emt 0:00:00]} 3. Bg2 {[%emt 0:00:16]} g6 {[%emt 0:00:06]} 4. Nf3 {[%emt 0:00:17]} Bg7 {[%emt 0:00:08]} 5. O-O {[%emt 0:00:16]} O-O {[%emt 0:00:08]} 6. c4 {[%emt 0:00:15]} d6 {[%emt 0:00:08]} 7. Nc3 {[%emt 0:00:20]} c6 {[%emt 0:00:14]} 8. Qc2 {[%emt 0:01:26]} Qe8 {[%emt 0:01:51]} 9. e4 {[%emt 0:01:08]} e5 {[%emt 0:04:48]} 10. dxe5 {[%emt 0:03:29]} dxe5 {[%emt 0:00:29]} 11. Re1 {[%emt 0:03:05]} Nxe4 {[%emt 0:04:04]} 12. Nxe4 {[%emt 0:00:39]} fxe4 {[%emt 0:00:04]} 13. Ng5 {[%emt 0:04:15]} Na6 {[%emt 0:14:30]} 14. Nxe4 {[%emt 0:01:34]} Bf5 {[%emt 0:03:12]} 15. Be3 {[%emt 0:03:24]} Qe7 {[%emt 0:16:16]} 16. c5 {[%emt 0:11:22]} Be6 {[%emt 0:05:45]} 17. a3 {[%emt 0:07:30]} Nc7 {[%emt 0:04:53]} 18. Bg5 {[%emt 0:08:04]} Qd7 {[%emt 0:02:22]} 19. Rad1 {[%emt 0:03:31]} Nd5 {[%emt 0:01:43]} 20. Nd6 {[%emt 0:00:43]} b6 {[%emt 0:08:27]} 21. b4 {[%emt 0:02:07]} Rfb8 {[%emt 0:10:23]} 22. Ne4 {[%emt 0:14:11]} Bf5 {[%emt 0:05:25]} 23. Qc4 {[%emt 0:10:14]} Be6 {[%emt 0:04:55]} 24. Qc1 {[%emt 0:00:15]} bxc5 {[%emt 0:03:10]} 25. Nxc5 {[%emt 0:00:36]} Qf7 {[%emt 0:01:23]} 26. Nd3 {[%emt 0:00:47]} Bg4 {[%emt 0:05:34]} 27. Qxc6 {[%emt 0:01:03]} Nb6 {[%emt 0:01:10]} 28. Rc1 {[%emt 0:04:02]} Qf5 {[%emt 0:01:25]} 29. h3 {[%emt 0:05:03]} Bxh3 {[%emt 0:01:50]} 30. Bxh3 {[%emt 0:00:23]} Qxh3 {[%emt 0:00:14]} 31. Nxe5 {[%emt 0:03:53]} Qf5 {[%emt 0:02:44]} 32. Qf3 {[%emt 0:00:16]} Qxg5 {[%emt 0:02:08]} 33. Qb3+ {[%emt 0:00:07]} 1-0

[Event "Gibraltar Junior Intl U16 2019"]
[Site "Caleta"]
[Date "2019.08.18"]
[Round "5.7"]
[White "Krivenko, Dion"]
[Black "Tadevosyan, Aspet"]
[Result "0-1"]
[ECO "B53"]
[WhiteElo "1810"]
[BlackElo "2038"]
[Annotator "NA"]
[PlyCount "78"]
[EventDate "2019.08.16"]
[EventType "swiss"]
[EventCountry "GGB"]
[SourceTitle "playchess.com"]
[Source "ChessBase"]
[SourceQuality "1"]
[TimeControl "6600+10"]

1. e4 {[%emt 0:00:00]} c5 {[%emt 0:00:00]} 2. Nf3 {[%emt 0:00:00]} d6 {[%emt 0:00:07]} 3. d4 {[%emt 0:00:00]} cxd4 {[%emt 0:00:12]} 4. Qxd4 {[%emt 0:00:01]} a6 {[%emt 0:03:55]} 5. c4 {[%emt 0:00:24]} Nc6 {[%emt 0:00:13]} 6. Qd3 {[%emt 0:00:55]} g6 {[%emt 0:00:42]} 7. h3 {[%emt 0:00:09]} Bg7 {[%emt 0:00:13]} 8. Be2 {[%emt 0:01:03]} Nf6 {[%emt 0:00:19]} 9. O-O {[%emt 0:00:32]} O-O {[%emt 0:00:09]} 10. Nc3 {[%emt 0:00:17]} Be6 {[%emt 0:02:41]} 11. Be3 {[%emt 0:02:57]} Nd7 {[%emt 0:08:46]} 12. b3 {[%emt 0:01:47]} Nc5 {[%emt 0:05:24]} 13. Bxc5 {[%emt 0:04:52]} dxc5 {[%emt 0:00:17]} 14. Qe3 {[%emt 0:09:50]} Nd4 {[%emt 0:09:43]} 15. Rad1 {[%emt 0:02:45]} Qa5 {[%emt 0:00:30]} 16. Nd5 {[%emt 0:02:24]} Bxd5 {[%emt 0:00:49]} 17. exd5 {[%emt 0:01:23]} Qxa2 {[%emt 0:00:27]} 18. Nxd4 {[%emt 0:01:39]} Bxd4 {[%emt 0:01:45]} 19. Qd3 {[%emt 0:01:10]} Qa5 {[%emt 0:09:20]} 20. Bf3 {[%emt 0:01:58]} Qc7 {[%emt 0:02:40]} 21. b4 {[%emt 0:03:13]} a5 {[%emt 0:01:58]} 22. b5 {[%emt 0:02:37]} a4 {[%emt 0:04:44]} 23. Qa3 {[%emt 0:01:18]} Qe5 {[%emt 0:03:29]} 24. Rd2 {[%emt 0:10:33]} h5 {[%emt 0:06:42]} 25. Re2 {[%emt 0:07:01]} Qf6 {[%emt 0:05:50]} 26. Rc2 {[%emt 0:07:27]} h4 {[%emt 0:01:23]} 27. Bd1 {[%emt 0:02:08]} Qf4 {[%emt 0:01:20]} 28. Re1 {[%emt 0:08:54]} Rfe8 {[%emt 0:04:33]} 29. Bf3 {[%emt 0:05:55]} e5 {[%emt 0:05:59]} 30. dxe6 {[%emt 0:02:13]} Be5 {[%emt 0:01:19]} 31. Bxb7 {[%emt 0:13:57]} Qh2+ {[%emt 0:02:17]} 32. Kf1 {[%emt 0:00:17]} Rxe6 {[%emt 0:00:22]} 33. Re3 {[%emt 0:07:58]} Rae8 {[%emt 0:02:21]} 34. Bd5 {[%emt 0:02:39]} R6e7 {[%emt 0:03:02]} 35. Qxc5 {[%emt 0:02:02]} Bd6 {[%emt 0:02:25]} 36. Qd4 {[%emt 0:00:24]} Bf4 {[%emt 0:00:51]} 37. Re4 {[%emt 0:03:13]} Qh1+ {[%emt 0:01:24]} 38. Ke2 {[%emt 0:00:00]} Qxg2 {[%emt 0:00:40]} 39. Kd1 {[%emt 0:00:22]} Qf1+ {[%emt 0:00:23]} 0-1

[Event "Gibraltar Junior Intl U16 2019"]
[Site "Caleta"]
[Date "2019.08.18"]
[Round "5.8"]
[White "Kuzhelev, Timur"]
[Black "Serrano Almendros, Alejandro"]
[Result "0-1"]
[ECO "C01"]
[WhiteElo "1597"]
[BlackElo "1922"]
[Annotator "NA"]
[PlyCount "60"]
[EventDate "2019.08.16"]
[EventType "swiss"]
[EventCountry "GGB"]
[SourceTitle "playchess.com"]
[Source "ChessBase"]
[SourceQuality "1"]
[TimeControl "6600+10"]

1. e4 {[%emt 0:00:00]} e6 {[%emt 0:00:00]} 2. d4 {[%emt 0:00:00]} d5 {[%emt 0:00:00]} 3. exd5 {[%emt 0:00:04]} exd5 {[%emt 0:00:06]} 4. Nf3 {[%emt 0:00:26]} Nc6 {[%emt 0:00:14]} 5. Bd3 {[%emt 0:00:14]} Bd6 {[%emt 0:00:32]} 6. O-O {[%emt 0:00:12]} Bg4 {[%emt 0:00:43]} 7. Re1+ {[%emt 0:00:27]} Nge7 {[%emt 0:00:14]} 8. c3 {[%emt 0:00:03]} Qd7 {[%emt 0:00:32]} 9. Be3 {[%emt 0:01:39]} O-O-O {[%emt 0:03:38]} 10. Nbd2 {[%emt 0:00:12]} Ng6 {[%emt 0:09:12]} 11. Qc2 {[%emt 0:00:54]} Nce7 {[%emt 0:02:59]} 12. Ne5 {[%emt 0:01:09]} Bxe5 {[%emt 0:05:00]} 13. dxe5 {[%emt 0:00:10]} Nxe5 {[%emt 0:02:38]} 14. Bxa7 {[%emt 0:00:15]} Nxd3 {[%emt 0:02:22]} 15. Qxd3 {[%emt 0:00:05]} Bf5 {[%emt 0:03:24]} 16. Qe2 {[%emt 0:07:46]} Rhe8 {[%emt 0:01:21]} 17. Be3 {[%emt 0:00:14]} Nc6 {[%emt 0:02:16]} 18. Nb3 {[%emt 0:00:15]} Ne5 {[%emt 0:07:40]} 19. Nc5 {[%emt 0:10:39]} Qc6 {[%emt 0:05:55]} 20. b4 {[%emt 0:06:56]} Nc4 {[%emt 0:10:22]} 21. Qf3 {[%emt 0:00:53]} Qg6 {[%emt 0:04:09]} 22. Bf4 {[%emt 0:05:09]} Be4 {[%emt 0:04:49]} 23. Nxe4 {[%emt 0:01:03]} Rxe4 {[%emt 0:01:40]} 24. Rxe4 {[%emt 0:11:27]} dxe4 {[%emt 0:00:31]} 25. Qe2 {[%emt 0:00:44]} Rd3 {[%emt 0:06:31]} 26. Rc1 {[%emt 0:10:53]} Qf5 {[%emt 0:06:12]} 27. g3 {[%emt 0:02:16]} g5 {[%emt 0:01:21]} 28. Qh5 {[%emt 0:04:07]} h6 {[%emt 0:10:59]} 29. h4 {[%emt 0:07:07]} Qh3 {[%emt 0:10:55]} 30. Bxc7 {[%emt 0:01:23]} Nd2 {[%emt 0:01:04]} 0-1

[Event "Gibraltar Junior Intl U16 2019"]
[Site "Caleta"]
[Date "2019.08.18"]
[Round "5.9"]
[White "Shepherd, Tom"]
[Black "Tombolis, Christopher"]
[Result "0-1"]
[ECO "D37"]
[WhiteElo "1659"]
[BlackElo "1874"]
[Annotator "NA"]
[PlyCount "63"]
[EventDate "2019.08.16"]
[EventType "swiss"]
[EventCountry "GGB"]
[SourceTitle "playchess.com"]
[Source "ChessBase"]
[SourceQuality "1"]
[TimeControl "6600+10"]

1. d4 {[%emt 0:00:00]} d5 {[%emt 0:00:00]} 2. c4 {[%emt 0:00:00]} e6 {[%emt 0:00:00]} 3. Nf3 {[%emt 0:00:00]} Nf6 {[%emt 0:00:08]} 4. Nc3 {[%emt 0:00:00]} Be7 {[%emt 0:00:13]} 5. Bf4 {[%emt 0:00:04]} O-O {[%emt 0:00:09]} 6. e3 {[%emt 0:00:02]} b6 {[%emt 0:01:37]} 7. Bd3 {[%emt 0:00:33]} Bb7 {[%emt 0:00:09]} 8. O-O {[%emt 0:00:09]} c5 {[%emt 0:00:48]} 9. dxc5 {[%emt 0:05:50]} bxc5 {[%emt 0:00:14]} 10. cxd5 {[%emt 0:00:06]} exd5 {[%emt 0:01:54]} 11. Ne5 {[%emt 0:00:46]} d4 {[%emt 0:05:20]} 12. exd4 {[%emt 0:07:01]} Qxd4 {[%emt 0:08:42]} 13. Bg3 {[%emt 0:02:26]} Nbd7 {[%emt 0:20:35]} 14. Nxd7 {[%emt 0:01:34]} Qxd7 {[%emt 0:01:06]} 15. Qc2 {[%emt 0:05:42]} Rad8 {[%emt 0:07:17]} 16. Rad1 {[%emt 0:05:42]} Qc6 {[%emt 0:01:12]} 17. f3 {[%emt 0:05:07]} c4 {[%emt 0:12:30]} 18. Be4 {[%emt 0:05:02]} Nxe4 {[%emt 0:03:58]} 19. Nxe4 {[%emt 0:00:58]} f5 {[%emt 0:00:49]} 20. Nd2 {[%emt 0:08:06]} Ba6 {[%emt 0:01:48]} 21. Rfe1 {[%emt 0:02:57]} Bf6 {[%emt 0:09:08]} 22. Kh1 {[%emt 0:06:07]} Rd5 {[%emt 0:03:41]} 23. Nb1 {[%emt 0:05:30]} Rfd8 {[%emt 0:01:27]} 24. Nc3 {[%emt 0:02:51]} Rd3 {[%emt 0:07:33]} 25. Be5 {[%emt 0:05:57]} Bh4 {[%emt 0:05:30]} 26. Rf1 {[%emt 0:02:55]} Qc5 {[%emt 0:03:58]} 27. Bg3 {[%emt 0:02:51]} Bxg3 {[%emt 0:00:49]} 28. hxg3 {[%emt 0:00:25]} R8d6 {[%emt 0:01:39]} 29. Rf2 {[%emt 0:03:06]} Qe5 {[%emt 0:04:29]} 30. Re2 {[%emt 0:04:03]} Qd4 {[%emt 0:00:56]} 31. Re8+ {[%emt 0:04:49]} Kf7 {[%emt 0:00:39]} 32. Re2 {[%emt 0:00:16]} 0-1

[Event "Gibraltar Junior Intl U16 2019"]
[Site "Caleta"]
[Date "2019.08.18"]
[Round "5.10"]
[White "Akeya-Price, Robert"]
[Black "Onslow, Teddy"]
[Result "1/2-1/2"]
[ECO "D02"]
[WhiteElo "1988"]
[BlackElo "1739"]
[Annotator "NA"]
[PlyCount "129"]
[EventDate "2019.08.16"]
[EventType "swiss"]
[EventCountry "GGB"]
[SourceTitle "playchess.com"]
[Source "ChessBase"]
[SourceQuality "1"]
[TimeControl "6600+10"]

1. d4 {[%emt 0:00:00]} d5 {[%emt 0:00:00]} 2. Nf3 {[%emt 0:00:04]} Nf6 {[%emt 0:00:03]} 3. g3 {[%emt 0:00:33]} Bg4 {[%emt 0:02:03]} 4. Ne5 {[%emt 0:01:08]} Bf5 {[%emt 0:01:10]} 5. Bg2 {[%emt 0:00:14]} e6 {[%emt 0:00:09]} 6. Nd2 {[%emt 0:01:54]} Bd6 {[%emt 0:00:31]} 7. Ndf3 {[%emt 0:01:10]} Nbd7 {[%emt 0:00:22]} 8. O-O {[%emt 0:02:31]} O-O {[%emt 0:01:11]} 9. c4 {[%emt 0:07:53]} c6 {[%emt 0:00:13]} 10. Bg5 {[%emt 0:02:48]} Be7 {[%emt 0:02:34]} 11. Qb3 {[%emt 0:01:58]} Rb8 {[%emt 0:00:25]} 12. Nxd7 {[%emt 0:03:53]} Qxd7 {[%emt 0:00:44]} 13. Ne5 {[%emt 0:00:17]} Qd8 {[%emt 0:00:23]} 14. Bf4 {[%emt 0:03:11]} Bd6 {[%emt 0:00:30]} 15. c5 {[%emt 0:01:38]} Bc7 {[%emt 0:00:34]} 16. Qa4 {[%emt 0:01:10]} a6 {[%emt 0:01:36]} 17. b4 {[%emt 0:00:33]} Nd7 {[%emt 0:00:59]} 18. Nxd7 {[%emt 0:05:41]} Qxd7 {[%emt 0:00:06]} 19. Qb3 {[%emt 0:00:37]} Rfe8 {[%emt 0:01:20]} 20. Qb2 {[%emt 0:07:36]} f6 {[%emt 0:01:38]} 21. Bxc7 {[%emt 0:04:42]} Qxc7 {[%emt 0:00:02]} 22. Rfe1 {[%emt 0:02:39]} e5 {[%emt 0:02:57]} 23. e4 {[%emt 0:03:26]} Bxe4 {[%emt 0:00:25]} 24. Bxe4 {[%emt 0:00:15]} dxe4 {[%emt 0:00:04]} 25. Rxe4 {[%emt 0:00:27]} exd4 {[%emt 0:00:17]} 26. Qxd4 {[%emt 0:04:23]} Rxe4 {[%emt 0:03:48]} 27. Qxe4 {[%emt 0:00:02]} a5 {[%emt 0:11:03]} 28. Qe6+ {[%emt 0:03:15]} Kf8 {[%emt 0:01:43]} 29. a3 {[%emt 0:04:29]} Re8 {[%emt 0:05:17]} 30. Qf5 {[%emt 0:04:30]} Qe5 {[%emt 0:02:37]} 31. Qxe5 {[%emt 0:01:51]} Rxe5 {[%emt 0:00:11]} 32. Kg2 {[%emt 0:04:58]} Re4 {[%emt 0:13:51]} 33. Rb1 {[%emt 0:02:44]} Rc4 {[%emt 0:01:51]} 34. bxa5 {[%emt 0:01:35]} Rxc5 {[%emt 0:00:07]} 35. Rxb7 {[%emt 0:00:10]} Rxa5 {[%emt 0:00:06]} 36. Rc7 {[%emt 0:00:13]} Rxa3 {[%emt 0:00:17]} 37. Rxc6 {[%emt 0:00:04]} Kf7 {[%emt 0:00:16]} 38. Rc7+ {[%emt 0:00:38]} Kg6 {[%emt 0:00:20]} 39. h4 {[%emt 0:00:41]} h5 {[%emt 0:02:22]} 40. Rc5 {[%emt 0:01:05]} Ra4 {[%emt 0:01:48]} 41. Rc3 {[%emt 0:03:48]} f5 {[%emt 0:05:07]} 42. Rc6+ {[%emt 0:02:54]} Kf7 {[%emt 0:00:10]} 43. Kf3 {[%emt 0:00:04]} g6 {[%emt 0:02:07]} 44. Rd6 {[%emt 0:01:35]} Kg7 {[%emt 0:02:03]} 45. Ke3 {[%emt 0:00:14]} Ra3+ {[%emt 0:01:21]} 46. Rd3 {[%emt 0:00:19]} Ra6 {[%emt 0:00:21]} 47. Rd4 {[%emt 0:00:27]} Kf6 {[%emt 0:00:39]} 48. Kf4 {[%emt 0:00:18]} Rb6 {[%emt 0:00:31]} 49. f3 {[%emt 0:00:58]} Ra6 {[%emt 0:00:33]} 50. g4 {[%emt 0:00:12]} fxg4 {[%emt 0:00:46]} 51. fxg4 {[%emt 0:00:09]} hxg4 {[%emt 0:00:09]} 52. Kxg4 {[%emt 0:00:06]} Ra1 {[%emt 0:00:55]} 53. Rd6+ {[%emt 0:00:44]} Kg7 {[%emt 0:00:06]} 54. Rd3 {[%emt 0:00:52]} Rg1+ {[%emt 0:00:10]} 55. Rg3 {[%emt 0:00:23]} Rxg3+ {[%emt 0:00:05]} 56. Kxg3 {[%emt 0:00:01]} Kh6 {[%emt 0:00:12]} 57. Kg4 {[%emt 0:00:07]} Kg7 {[%emt 0:00:04]} 58. Kg5 {[%emt 0:00:10]} Kg8 {[%emt 0:00:08]} 59. Kxg6 {[%emt 0:00:18]} Kh8 {[%emt 0:00:07]} 60. Kf5 {[%emt 0:00:04]} Kh7 {[%emt 0:00:08]} 61. Ke4 {[%emt 0:00:03]} Kh6 {[%emt 0:00:06]} 62. Kd4 {[%emt 0:00:02]} Kh5 {[%emt 0:00:08]} 63. Ke4 {[%emt 0:00:04]} Kxh4 {[%emt 0:00:07]} 64. Kd4 {[%emt 0:00:05]} Kg4 {[%emt 0:00:01]} 65. Ke4 {[%emt 0:00:00] Kf5+ Kd4 Ke4+ Kd3+ Kd5 Kd4+} 1/2-1/2

[Event "Gibraltar Junior Intl U16 2019"]
[Site "Caleta"]
[Date "2019.08.18"]
[Round "5.11"]
[White "Martinez Soriano, Javier"]
[Black "Seleznev, Egor"]
[Result "1-0"]
[ECO "C45"]
[WhiteElo "1992"]
[BlackElo "1590"]
[Annotator "NA"]
[PlyCount "103"]
[EventDate "2019.08.16"]
[EventType "swiss"]
[EventCountry "GGB"]
[SourceTitle "playchess.com"]
[Source "ChessBase"]
[SourceQuality "1"]
[TimeControl "6600+10"]

1. e4 {[%emt 0:00:00]} e5 {[%emt 0:00:04]} 2. Nf3 {[%emt 0:00:00]} Nc6 {[%emt 0:00:11]} 3. d4 {[%emt 0:00:07]} exd4 {[%emt 0:00:25]} 4. Nxd4 {[%emt 0:00:09]} Nf6 {[%emt 0:00:17]} 5. Nxc6 {[%emt 0:00:11]} bxc6 {[%emt 0:00:09]} 6. e5 {[%emt 0:01:25]} Qe7 {[%emt 0:00:36]} 7. Qe2 {[%emt 0:00:04]} Nd5 {[%emt 0:00:41]} 8. c4 {[%emt 0:00:06]} Ba6 {[%emt 0:00:23]} 9. b3 {[%emt 0:00:14]} g6 {[%emt 0:01:51]} 10. Bb2 {[%emt 0:00:32]} Bg7 {[%emt 0:01:23]} 11. Nd2 {[%emt 0:02:24]} O-O {[%emt 0:02:29]} 12. Qe4 {[%emt 0:00:58]} f5 {[%emt 0:02:01]} 13. exf6 {[%emt 0:08:36]} Qxe4+ {[%emt 0:02:05]} 14. Nxe4 {[%emt 0:00:07]} Nxf6 {[%emt 0:00:19]} 15. Nxf6+ {[%emt 0:01:41]} Bxf6 {[%emt 0:00:19]} 16. Bxf6 {[%emt 0:00:06]} Rxf6 {[%emt 0:00:53]} 17. f3 {[%emt 0:02:28]} d5 {[%emt 0:01:33]} 18. O-O-O {[%emt 0:01:57]} Bb7 {[%emt 0:01:17]} 19. Bd3 {[%emt 0:02:10]} Re6 {[%emt 0:01:26]} 20. h4 {[%emt 0:02:02]} Rae8 {[%emt 0:02:45]} 21. Kd2 {[%emt 0:01:26]} Kg7 {[%emt 0:00:47]} 22. h5 {[%emt 0:01:14]} Re5 {[%emt 0:03:45]} 23. hxg6 {[%emt 0:00:20]} hxg6 {[%emt 0:00:08]} 24. Rhe1 {[%emt 0:02:16]} Kf6 {[%emt 0:03:04]} 25. f4 {[%emt 0:01:25]} Rxe1 {[%emt 0:02:04]} 26. Rxe1 {[%emt 0:00:07]} Rxe1 {[%emt 0:01:31]} 27. Kxe1 {[%emt 0:00:05]} Bc8 {[%emt 0:00:43]} 28. Kd2 {[%emt 0:04:01]} Bf5 {[%emt 0:02:51]} 29. Be2 {[%emt 0:00:57]} Be4 {[%emt 0:04:33]} 30. g4 {[%emt 0:00:22]} a5 {[%emt 0:04:18]} 31. Kc3 {[%emt 0:02:41]} c5 {[%emt 0:01:38]} 32. cxd5 {[%emt 0:01:23]} Bxd5 {[%emt 0:00:11]} 33. Kd3 {[%emt 0:02:05]} c6 {[%emt 0:03:05]} 34. Kc3 {[%emt 0:00:34]} Ke6 {[%emt 0:01:20]} 35. Bd3 {[%emt 0:00:51]} Kf6 {[%emt 0:01:00]} 36. g5+ {[%emt 0:00:04]} Kf7 {[%emt 0:00:35]} 37. Kb2 {[%emt 0:00:07]} c4 {[%emt 0:08:35]} 38. bxc4 {[%emt 0:00:39]} Bf3 {[%emt 0:00:30]} 39. Kc3 {[%emt 0:00:38]} c5 {[%emt 0:00:46]} 40. Kd2 {[%emt 0:00:53]} Bc6 {[%emt 0:01:43]} 41. Ke3 {[%emt 0:00:29]} Be8 {[%emt 0:02:05]} 42. f5 {[%emt 0:01:16]} gxf5 {[%emt 0:00:58]} 43. Bxf5 {[%emt 0:00:06]} Ke7 {[%emt 0:01:53]} 44. Kf4 {[%emt 0:01:14]} Bf7 {[%emt 0:00:49]} 45. Bd3 {[%emt 0:00:48]} Bg8 {[%emt 0:04:24]} 46. Ke5 {[%emt 0:00:32]} a4 {[%emt 0:02:51]} 47. a3 {[%emt 0:00:13]} Be6 {[%emt 0:00:59]} 48. g6 {[%emt 0:00:17]} Bg8 {[%emt 0:01:32]} 49. g7 {[%emt 0:00:31]} Bf7 {[%emt 0:02:43]} 50. Bh7 {[%emt 0:00:34]} Bxc4 {[%emt 0:00:29]} 51. g8=Q {[%emt 0:00:06]} Bxg8 {[%emt 0:00:19]} 52. Bxg8 {[%emt 0:00:06]} 1-0